[Event "GrandPrix_30.05"]
[Site "Chess.com"]
[Date "2020.05.30"]
[Round "3"]
[White "Murad_Ibrahimli"]
[Black "Sunerorlater"]
[Result "1/2-1/2"]
[WhiteElo "2551"]
[BlackElo "2229"]
[TimeControl "600+2"]
[EndTime "9:22:46 PDT"]
[Termination "Game drawn by repetition"]

1. d4 {[%clk 0:10:01.9]} 1... Nf6 {[%clk 0:09:59.9]} 2. c4 {[%clk 0:10:02.1]}
2... e6 {[%clk 0:10:00]} 3. Nc3 {[%clk 0:10:01.5]} 3... Bb4 {[%clk 0:10:00.2]}
4. Qc2 {[%clk 0:10:02.4]} 4... d6 {[%clk 0:10:00.1]} 5. Nf3 {[%clk 0:10:00.3]}
5... Nbd7 {[%clk 0:09:58.2]} 6. Bg5 {[%clk 0:09:58.2]} 6... h6 {[%clk
0:09:55.9]} 7. Bh4 {[%clk 0:09:57.7]} 7... g5 {[%clk 0:09:43.1]} 8. Bg3 {[%clk
0:09:50.1]} 8... Nh5 {[%clk 0:09:43.4]} 9. e3 {[%clk 0:09:48.6]} 9... O-O {[%clk
0:09:23.6]} 10. Bd3 {[%clk 0:09:46.5]} 10... f5 {[%clk 0:09:18.9]} 11. O-O-O
{[%clk 0:09:44]} 11... Bxc3 {[%clk 0:09:17.1]} 12. Qxc3 {[%clk 0:09:42.7]} 12...
Ndf6 {[%clk 0:09:02.9]} 13. Qc2 {[%clk 0:09:35.2]} 13... Ng4 {[%clk 0:08:00.3]}
14. Kb1 {[%clk 0:09:20.6]} 14... Qe7 {[%clk 0:07:45.9]} 15. Qe2 {[%clk
0:08:12.3]} 15... Bd7 {[%clk 0:07:06]} 16. h4 {[%clk 0:08:10.4]} 16... Nxg3
{[%clk 0:06:58.8]} 17. fxg3 {[%clk 0:08:09.2]} 17... e5 {[%clk 0:06:49]} 18.
dxe5 {[%clk 0:07:55]} 18... dxe5 {[%clk 0:06:42.2]} 19. e4 {[%clk 0:07:54.3]}
19... f4 {[%clk 0:06:02.6]} 20. hxg5 {[%clk 0:07:41.3]} 20... fxg3 {[%clk
0:05:46.7]} 21. Rd2 {[%clk 0:07:36.5]} 21... hxg5 {[%clk 0:05:22.6]} 22. Rh5
{[%clk 0:07:34.1]} 22... Rf7 {[%clk 0:05:15.2]} 23. Rxg5+ {[%clk 0:07:31.6]}
23... Rg7 {[%clk 0:05:15.9]} 24. Rxg7+ {[%clk 0:07:28.6]} 24... Kxg7 {[%clk
0:05:09.4]} 25. Bc2 {[%clk 0:06:06]} 25... Rh8 {[%clk 0:04:57.2]} 26. b3 {[%clk
0:05:46.9]} 26... Be6 {[%clk 0:04:38]} 27. Kb2 {[%clk 0:05:45.5]} 27... a5
{[%clk 0:04:36.3]} 28. a4 {[%clk 0:05:38.6]} 28... b6 {[%clk 0:03:35.9]} 29. Ka2
{[%clk 0:05:05.7]} 29... Rh1 {[%clk 0:03:28.1]} 30. Rd1 {[%clk 0:04:48.3]} 30...
Rxd1 {[%clk 0:03:07.7]} 31. Qxd1 {[%clk 0:04:45.8]} 31... Ne3 {[%clk 0:02:51.2]}
32. Qd2 {[%clk 0:04:00.5]} 32... Nxc2 {[%clk 0:02:35.5]} 33. Qxc2 {[%clk
0:03:56.1]} 33... Qc5 {[%clk 0:02:37]} 34. Qc1 {[%clk 0:03:27.6]} 34... Qf2+
{[%clk 0:01:54]} 35. Ka3 {[%clk 0:03:24.3]} 35... Qc5+ {[%clk 0:01:53.4]} 36.
Ka2 {[%clk 0:03:23.8]} 36... Qf2+ {[%clk 0:01:53.4]} 37. Ka1 {[%clk 0:03:24.8]}
37... Qxg2 {[%clk 0:01:52.8]} 38. Qg5+ {[%clk 0:03:23.4]} 38... Kf7 {[%clk
0:01:23.7]} 39. Nxe5+ {[%clk 0:02:28]} 39... Ke8 {[%clk 0:01:22.7]} 40. Ng6
{[%clk 0:01:40.5]} 40... Qf1+ {[%clk 0:01:04.1]} 41. Kb2 {[%clk 0:01:38.2]}
41... Qf2+ {[%clk 0:00:59.4]} 42. Ka1 {[%clk 0:01:30.7]} 42... Qe1+ {[%clk
0:00:52.6]} 43. Kb2 {[%clk 0:01:27.8]} 43... Qf2+ {[%clk 0:00:52.9]} 44. Ka1
{[%clk 0:01:26.7]} 44... Qe1+ {[%clk 0:00:37.3]} 45. Ka2 {[%clk 0:01:22.2]}
45... Qf2+ {[%clk 0:00:35.4]} 46. Ka1 {[%clk 0:01:21.2]} 1/2-1/2

[Event "GrandPrix_30.05"]
[Site "Chess.com"]
[Date "2020.05.30"]
[Round "3"]
[White "Firegrizzly"]
[Black "GM_Levan_Pantsulaia"]
[Result "1-0"]
[WhiteElo "2257"]
[BlackElo "2412"]
[TimeControl "600+2"]
[EndTime "9:22:49 PDT"]
[Termination "Firegrizzly won on time"]

1. e4 {[%clk 0:10:01.9]} 1... c5 {[%clk 0:10:00.5]} 2. Nf3 {[%clk 0:10:01.9]}
2... e6 {[%clk 0:10:01.7]} 3. d4 {[%clk 0:10:00.6]} 3... cxd4 {[%clk 0:10:03.6]}
4. Nxd4 {[%clk 0:10:02.4]} 4... a6 {[%clk 0:10:04.9]} 5. Nc3 {[%clk 0:10:03.4]}
5... b5 {[%clk 0:10:05.3]} 6. Bd3 {[%clk 0:10:04.1]} 6... Bb7 {[%clk 0:10:00.1]}
7. O-O {[%clk 0:10:01.8]} 7... Nc6 {[%clk 0:10:01.6]} 8. Nb3 {[%clk 0:09:56.2]}
8... Nf6 {[%clk 0:09:52.6]} 9. f4 {[%clk 0:09:54.9]} 9... b4 {[%clk 0:09:46.6]}
10. Na4 {[%clk 0:09:44.6]} 10... d6 {[%clk 0:09:46.8]} 11. Be3 {[%clk
0:09:40.9]} 11... Nd7 {[%clk 0:09:35.5]} 12. c4 {[%clk 0:09:38.7]} 12... bxc3
{[%clk 0:09:11.4]} 13. Nxc3 {[%clk 0:09:37.6]} 13... Be7 {[%clk 0:09:11.3]} 14.
Rc1 {[%clk 0:09:36]} 14... O-O {[%clk 0:09:11.1]} 15. Qh5 {[%clk 0:09:34.5]}
15... g6 {[%clk 0:08:57.7]} 16. Qh6 {[%clk 0:09:32.9]} 16... Bf6 {[%clk
0:08:58.5]} 17. Bb1 {[%clk 0:09:23.8]} 17... Bg7 {[%clk 0:08:58.5]} 18. Qh3
{[%clk 0:09:20.3]} 18... a5 {[%clk 0:08:35.8]} 19. a4 {[%clk 0:09:12.9]} 19...
Nb4 {[%clk 0:07:52.7]} 20. Rcd1 {[%clk 0:08:55]} 20... d5 {[%clk 0:07:50.2]} 21.
f5 {[%clk 0:08:50.8]} 21... Qe7 {[%clk 0:05:43.8]} 22. fxe6 {[%clk 0:08:28.8]}
22... Qxe6 {[%clk 0:05:39.6]} 23. Qxe6 {[%clk 0:08:13.3]} 23... fxe6 {[%clk
0:05:41.5]} 24. Nb5 {[%clk 0:07:58.4]} 24... Rxf1+ {[%clk 0:05:33.5]} 25. Rxf1
{[%clk 0:07:58.7]} 25... dxe4 {[%clk 0:04:32]} 26. Nc7 {[%clk 0:07:55]} 26...
Rc8 {[%clk 0:04:31.4]} 27. Nxe6 {[%clk 0:07:51.5]} 27... Bxb2 {[%clk 0:03:51.8]}
28. Nxa5 {[%clk 0:07:47]} 28... Bd5 {[%clk 0:03:50.4]} 29. Nf4 {[%clk
0:07:42.6]} 29... Bf7 {[%clk 0:03:51.8]} 30. Nb7 {[%clk 0:07:19.6]} 30... Nc2
{[%clk 0:02:24.3]} 31. Bxc2 {[%clk 0:07:01.4]} 31... Rxc2 {[%clk 0:02:26.2]} 32.
a5 {[%clk 0:06:17]} 32... g5 {[%clk 0:02:02.9]} 33. Nh3 {[%clk 0:06:09.6]} 33...
h6 {[%clk 0:02:04.1]} 34. Rf2 {[%clk 0:05:42.3]} 34... Rxf2 {[%clk 0:01:54.2]}
35. Nxf2 {[%clk 0:05:44.2]} 35... Bd5 {[%clk 0:01:53.7]} 36. Nd6 {[%clk
0:05:39.8]} 36... Nf6 {[%clk 0:01:54.3]} 37. a6 {[%clk 0:05:24.9]} 37... Be5
{[%clk 0:01:51.9]} 38. Nc8 {[%clk 0:05:17.6]} 38... Kf7 {[%clk 0:01:44.5]} 39.
Nb6 {[%clk 0:05:13.7]} 39... Ke6 {[%clk 0:00:55.7]} 40. a7 {[%clk 0:05:04.2]}
40... Bb7 {[%clk 0:00:54.8]} 41. a8=Q {[%clk 0:04:58.1]} 41... Bxa8 {[%clk
0:00:55.8]} 42. Nxa8 {[%clk 0:05:00]} 42... Nd5 {[%clk 0:00:53.6]} 43. Bc5
{[%clk 0:04:46.8]} 43... e3 {[%clk 0:00:19.6]} 44. Nd3 {[%clk 0:04:41.5]} 44...
Bd6 {[%clk 0:00:21]} 45. Ba7 {[%clk 0:04:28.9]} 45... e2 {[%clk 0:00:17.7]} 46.
Kf2 {[%clk 0:04:07.7]} 46... Bxh2 {[%clk 0:00:09.4]} 47. Kxe2 {[%clk 0:04:03.7]}
47... h5 {[%clk 0:00:09.9]} 48. Kf2 {[%clk 0:04:00.3]} 48... Bd6 {[%clk
0:00:08.2]} 49. Nb6 {[%clk 0:03:55.5]} 49... Nxb6 {[%clk 0:00:06.4]} 50. Bxb6
{[%clk 0:03:55.9]} 50... h4 {[%clk 0:00:06.1]} 51. Bd8 {[%clk 0:03:50]} 51...
Kf5 {[%clk 0:00:06.2]} 52. Kf1 {[%clk 0:03:38]} 52... Bg3 {[%clk 0:00:06.4]} 53.
Nc1 {[%clk 0:03:27.2]} 53... Bf4 {[%clk 0:00:04.5]} 54. Ne2 {[%clk 0:03:25.5]}
54... Bd6 {[%clk 0:00:04.5]} 55. Nd4+ {[%clk 0:03:20.3]} 55... Kg4 {[%clk
0:00:04.8]} 56. Nb5 {[%clk 0:03:00.7]} 1-0

[Event "GrandPrix_30.05"]
[Site "Chess.com"]
[Date "2020.05.30"]
[Round "3"]
[White "AsadliVugar"]
[Black "Alexander_Donchenko"]
[Result "1-0"]
[WhiteElo "2535"]
[BlackElo "2671"]
[TimeControl "600+2"]
[EndTime "9:22:50 PDT"]
[Termination "AsadliVugar won by resignation"]

1. e4 {[%clk 0:10:01.9]} 1... c6 {[%clk 0:10:00.1]} 2. Nf3 {[%clk 0:10:01.4]}
2... d5 {[%clk 0:10:01.3]} 3. exd5 {[%clk 0:10:03]} 3... cxd5 {[%clk 0:10:02.3]}
4. Ne5 {[%clk 0:10:04.7]} 4... a6 {[%clk 0:09:51.7]} 5. d4 {[%clk 0:10:05.2]}
5... Nc6 {[%clk 0:09:51.5]} 6. c3 {[%clk 0:10:03.3]} 6... g6 {[%clk 0:09:18]} 7.
Bd3 {[%clk 0:10:01.1]} 7... Bg7 {[%clk 0:09:18.5]} 8. f4 {[%clk 0:09:57.6]} 8...
Nh6 {[%clk 0:09:12.9]} 9. Nd2 {[%clk 0:09:41.4]} 9... O-O {[%clk 0:09:05.8]} 10.
O-O {[%clk 0:09:40.3]} 10... Bf5 {[%clk 0:08:56.1]} 11. Ndf3 {[%clk 0:09:40]}
11... Bxd3 {[%clk 0:08:48.1]} 12. Nxd3 {[%clk 0:09:31.3]} 12... Nf5 {[%clk
0:08:45.4]} 13. Nfe5 {[%clk 0:09:09.1]} 13... f6 {[%clk 0:08:14.3]} 14. Nxc6
{[%clk 0:08:57.2]} 14... bxc6 {[%clk 0:08:16.2]} 15. g4 {[%clk 0:08:55.5]} 15...
Nd6 {[%clk 0:08:15.5]} 16. f5 {[%clk 0:08:56.6]} 16... Ne4 {[%clk 0:07:53.4]}
17. Nf4 {[%clk 0:08:50.5]} 17... Qb6 {[%clk 0:07:45.7]} 18. Ne6 {[%clk
0:08:50.7]} 18... Rfc8 {[%clk 0:07:29.1]} 19. Qb3 {[%clk 0:08:28]} 19... Rab8
{[%clk 0:06:51.4]} 20. Qxb6 {[%clk 0:07:11.4]} 20... Rxb6 {[%clk 0:06:53.3]} 21.
Rf3 {[%clk 0:07:10.6]} 21... a5 {[%clk 0:06:42.4]} 22. b3 {[%clk 0:07:08.3]}
22... Ra6 {[%clk 0:06:04]} 23. Bf4 {[%clk 0:06:48.6]} 23... Ra7 {[%clk
0:05:15.1]} 24. Re1 {[%clk 0:06:47.9]} 24... Rb7 {[%clk 0:04:56.9]} 25. Rxe4
{[%clk 0:06:26.4]} 25... dxe4 {[%clk 0:04:57.4]} 26. Re3 {[%clk 0:06:27.6]}
26... Kf7 {[%clk 0:04:24.7]} 27. Rxe4 {[%clk 0:05:42.3]} 27... gxf5 {[%clk
0:04:18.5]} 28. gxf5 {[%clk 0:05:43.4]} 28... Rb5 {[%clk 0:04:15]} 29. Nc5
{[%clk 0:05:39.5]} 29... Rd8 {[%clk 0:04:11.3]} 30. a4 {[%clk 0:05:16.6]} 30...
Rxc5 {[%clk 0:04:06.7]} 31. dxc5 {[%clk 0:05:18.1]} 31... Rd5 {[%clk 0:04:08.3]}
32. b4 {[%clk 0:05:18.7]} 32... Rxf5 {[%clk 0:03:36.9]} 33. bxa5 {[%clk
0:04:28.9]} 33... Rxc5 {[%clk 0:01:34.3]} 34. Bc7 {[%clk 0:04:29.7]} 34... f5
{[%clk 0:01:35.5]} 35. a6 {[%clk 0:04:30.8]} 35... fxe4 {[%clk 0:00:36.8]} 36.
a7 {[%clk 0:04:32.1]} 36... Bxc3 {[%clk 0:00:10.9]} 37. a8=Q {[%clk 0:04:33.1]}
37... e3 {[%clk 0:00:12.3]} 38. Kf1 {[%clk 0:04:21.2]} 38... Bd4 {[%clk
0:00:13.2]} 39. Ke2 {[%clk 0:03:25.3]} 39... Rc2+ {[%clk 0:00:12.9]} 40. Kd3
{[%clk 0:03:03.1]} 40... Rd2+ {[%clk 0:00:11.5]} 41. Ke4 {[%clk 0:03:04.1]}
41... e2 {[%clk 0:00:11.8]} 42. Bg3 {[%clk 0:03:05.6]} 42... Bf6 {[%clk
0:00:02.6]} 43. Qxc6 {[%clk 0:03:01.1]} 43... e1=Q+ {[%clk 0:00:02.9]} 44. Bxe1
{[%clk 0:03:01.6]} 44... Re2+ {[%clk 0:00:04.6]} 45. Kd3 {[%clk 0:02:56]} 45...
Rxe1 {[%clk 0:00:05.7]} 46. a5 {[%clk 0:02:57.4]} 46... Rd1+ {[%clk 0:00:05.5]}
47. Kc2 {[%clk 0:02:56.8]} 47... Ra1 {[%clk 0:00:03.5]} 48. a6 {[%clk
0:02:56.5]} 48... Kg7 {[%clk 0:00:03.8]} 49. Qb6 {[%clk 0:02:50.9]} 49... Ra2+
{[%clk 0:00:04.1]} 50. Kd3 {[%clk 0:02:51.2]} 50... Rxh2 {[%clk 0:00:03.2]} 51.
a7 {[%clk 0:02:50]} 51... Rh3+ {[%clk 0:00:03.8]} 52. Ke2 {[%clk 0:02:49.8]}
52... Ra3 {[%clk 0:00:04.1]} 53. Qb7 {[%clk 0:02:50.7]} 53... h5 {[%clk
0:00:02.3]} 54. a8=Q {[%clk 0:02:51.6]} 54... Rxa8 {[%clk 0:00:03.9]} 55. Qxa8
{[%clk 0:02:53.2]} 55... h4 {[%clk 0:00:05.8]} 56. Kf3 {[%clk 0:02:54.5]} 56...
Kg6 {[%clk 0:00:05.6]} 57. Kg4 {[%clk 0:02:56]} 57... Kf7 {[%clk 0:00:05.7]} 58.
Qd5+ {[%clk 0:02:56.8]} 58... Kg7 {[%clk 0:00:06.5]} 59. Kf5 {[%clk 0:02:55.8]}
59... Bc3 {[%clk 0:00:02.8]} 60. Qg2+ {[%clk 0:02:56]} 60... Kf8 {[%clk
0:00:03.7]} 61. Ke6 {[%clk 0:02:56.9]} 1-0

[Event "GrandPrix_30.05"]
[Site "Chess.com"]
[Date "2020.05.30"]
[Round "3"]
[White "Martin_Petrov2000"]
[Black "Magicmaster17"]
[Result "1-0"]
[WhiteElo "2189"]
[BlackElo "2361"]
[TimeControl "600+2"]
[EndTime "9:22:55 PDT"]
[Termination "Martin_Petrov2000 won by resignation"]

1. e4 {[%clk 0:10:01.9]} 1... e5 {[%clk 0:09:59]} 2. Nf3 {[%clk 0:10:02.1]} 2...
Nc6 {[%clk 0:09:59.6]} 3. Bc4 {[%clk 0:10:03]} 3... Nf6 {[%clk 0:09:55.1]} 4. d3
{[%clk 0:10:02.7]} 4... Bc5 {[%clk 0:09:52.6]} 5. O-O {[%clk 0:10:02.5]} 5... a6
{[%clk 0:09:48.7]} 6. c3 {[%clk 0:09:54.7]} 6... Ba7 {[%clk 0:09:36.2]} 7. a4
{[%clk 0:09:42.4]} 7... O-O {[%clk 0:09:34.8]} 8. h3 {[%clk 0:09:25]} 8... d6
{[%clk 0:08:19.8]} 9. Nbd2 {[%clk 0:09:17.5]} 9... Re8 {[%clk 0:08:03.7]} 10.
Re1 {[%clk 0:09:14.4]} 10... Be6 {[%clk 0:08:00.4]} 11. Bxe6 {[%clk 0:09:03.9]}
11... Rxe6 {[%clk 0:08:01]} 12. b4 {[%clk 0:09:02.1]} 12... h6 {[%clk
0:07:36.9]} 13. Qc2 {[%clk 0:08:57.8]} 13... Qd7 {[%clk 0:07:38.4]} 14. Nf1
{[%clk 0:08:52.6]} 14... d5 {[%clk 0:07:38.9]} 15. Bd2 {[%clk 0:08:16.8]} 15...
dxe4 {[%clk 0:07:19.3]} 16. dxe4 {[%clk 0:08:16.2]} 16... Rd8 {[%clk 0:07:20.9]}
17. b5 {[%clk 0:07:35.6]} 17... Ne7 {[%clk 0:07:00.5]} 18. Red1 {[%clk
0:06:47.5]} 18... Qd3 {[%clk 0:06:08.9]} 19. Qxd3 {[%clk 0:06:39.1]} 19... Rxd3
{[%clk 0:06:10.8]} 20. Be3 {[%clk 0:06:39.3]} 20... Rxd1 {[%clk 0:06:02.9]} 21.
Rxd1 {[%clk 0:06:40]} 21... Bxe3 {[%clk 0:06:04.6]} 22. Nxe3 {[%clk 0:06:36.4]}
22... Nxe4 {[%clk 0:06:05.4]} 23. Rd8+ {[%clk 0:06:32.5]} 23... Kh7 {[%clk
0:06:05.9]} 24. c4 {[%clk 0:06:29.7]} 24... Nc5 {[%clk 0:04:38.5]} 25. a5 {[%clk
0:05:55.6]} 25... b6 {[%clk 0:02:39.8]} 26. Nd5 {[%clk 0:03:49.3]} 26... bxa5
{[%clk 0:00:42.8]} 27. Nxc7 {[%clk 0:03:39.4]} 27... Rb6 {[%clk 0:00:43.2]} 28.
Nxe5 {[%clk 0:03:26.4]} 28... a4 {[%clk 0:00:31.6]} 29. Nd3 {[%clk 0:01:52.1]}
29... Nxd3 {[%clk 0:00:23.8]} 30. bxa6 {[%clk 0:01:49.3]} 30... Nc6 {[%clk
0:00:19.6]} 31. Rxd3 {[%clk 0:01:48.8]} 31... Rb3 {[%clk 0:00:19.2]} 32. Rd2
{[%clk 0:01:29.1]} 32... a3 {[%clk 0:00:20.2]} 33. Ra2 {[%clk 0:01:27.4]} 33...
Rc3 {[%clk 0:00:16.6]} 34. Nb5 {[%clk 0:01:25.2]} 34... Rxc4 {[%clk 0:00:11.3]}
35. Rxa3 {[%clk 0:01:24.1]} 35... Rc1+ {[%clk 0:00:06.9]} 36. Kh2 {[%clk
0:01:24.5]} 36... Rc2 {[%clk 0:00:08.4]} 37. Kg3 {[%clk 0:01:22.2]} 37... Rb2
{[%clk 0:00:06.2]} 38. a7 {[%clk 0:01:21.7]} 38... Nxa7 {[%clk 0:00:07.4]} 39.
Nxa7 {[%clk 0:01:23.1]} 39... Rb6 {[%clk 0:00:07.2]} 40. Rc3 {[%clk 0:01:21.5]}
40... Rg6+ {[%clk 0:00:07.8]} 41. Kh2 {[%clk 0:01:21.4]} 41... Rf6 {[%clk
0:00:08.7]} 42. Rc2 {[%clk 0:01:20.2]} 1-0

[Event "GrandPrix_30.05"]
[Site "Chess.com"]
[Date "2020.05.30"]
[Round "3"]
[White "Velis23"]
[Black "Bacyanide"]
[Result "0-1"]
[WhiteElo "2156"]
[BlackElo "2431"]
[TimeControl "600+2"]
[EndTime "9:22:55 PDT"]
[Termination "Bacyanide won by resignation"]

1. d4 {[%clk 0:10:01.9]} 1... d5 {[%clk 0:10:00.5]} 2. Bf4 {[%clk 0:10:01.6]}
2... c5 {[%clk 0:09:52.8]} 3. e3 {[%clk 0:10:01.7]} 3... Nc6 {[%clk 0:09:46.2]}
4. c3 {[%clk 0:10:01.7]} 4... Qb6 {[%clk 0:09:35.2]} 5. Qb3 {[%clk 0:10:00.9]}
5... c4 {[%clk 0:09:33.8]} 6. Qc2 {[%clk 0:10:01.2]} 6... Bf5 {[%clk 0:09:19.7]}
7. Qxf5 {[%clk 0:08:32.2]} 7... Qxb2 {[%clk 0:09:19]} 8. Qxd5 {[%clk 0:08:28.6]}
8... Qxa1 {[%clk 0:09:18.5]} 9. Qb5 {[%clk 0:08:22.8]} 9... O-O-O {[%clk
0:08:33]} 10. Bxc4 {[%clk 0:08:03.6]} 10... e5 {[%clk 0:07:50.4]} 11. Nf3 {[%clk
0:04:04.5]} 11... exf4 {[%clk 0:07:35.7]} 12. O-O {[%clk 0:04:04.4]} 12... fxe3
{[%clk 0:06:41]} 13. fxe3 {[%clk 0:04:01]} 13... Nh6 {[%clk 0:05:58.6]} 14. d5
{[%clk 0:03:41]} 14... Nb8 {[%clk 0:05:40.1]} 15. Nd4 {[%clk 0:03:15.1]} 15...
a6 {[%clk 0:03:56.1]} 16. Qb3 {[%clk 0:02:43.3]} 16... Nd7 {[%clk 0:03:54.6]}
17. Nc2 {[%clk 0:01:51.9]} 17... Nc5 {[%clk 0:03:53.5]} 18. Qb6 {[%clk
0:01:12.5]} 18... Na4 {[%clk 0:03:14]} 19. Qxd8+ {[%clk 0:01:12.7]} 19... Kxd8
{[%clk 0:03:15.9]} 20. Nxa1 {[%clk 0:01:13.2]} 20... Bc5 {[%clk 0:03:15.4]} 21.
Nc2 {[%clk 0:01:10.4]} 21... Re8 {[%clk 0:03:04.5]} 22. Bb3 {[%clk 0:01:10]}
22... Nb2 {[%clk 0:02:39.9]} 23. Nd2 {[%clk 0:00:42.9]} 23... Rxe3 {[%clk
0:02:23.6]} 24. Nxe3 {[%clk 0:00:11.9]} 24... Bxe3+ {[%clk 0:02:25.5]} 25. Kh1
{[%clk 0:00:13.3]} 25... Bxd2 {[%clk 0:02:26]} 26. Bc2 {[%clk 0:00:12.4]} 26...
Bxc3 {[%clk 0:02:08.1]} 27. h3 {[%clk 0:00:13]} 27... g6 {[%clk 0:02:00.3]} 28.
Be4 {[%clk 0:00:11.3]} 28... Be5 {[%clk 0:01:55.7]} 29. d6 {[%clk 0:00:11]}
29... b5 {[%clk 0:01:47.8]} 30. Bb7 {[%clk 0:00:11.7]} 30... Bxd6 {[%clk
0:01:28.7]} 31. Bxa6 {[%clk 0:00:12.4]} 31... b4 {[%clk 0:01:27.2]} 32. Bb5
{[%clk 0:00:13.2]} 32... Be5 {[%clk 0:01:23]} 33. Re1 {[%clk 0:00:12.9]} 33...
f6 {[%clk 0:01:23.3]} 34. Re4 {[%clk 0:00:13.9]} 34... Bc3 {[%clk 0:01:09.4]}
35. Re8+ {[%clk 0:00:12.7]} 35... Kc7 {[%clk 0:01:10.6]} 36. Re7+ {[%clk
0:00:14.1]} 36... Kb6 {[%clk 0:01:11.8]} 37. Be2 {[%clk 0:00:15.1]} 37... Nf5
{[%clk 0:01:11.3]} 38. Rxh7 {[%clk 0:00:15.9]} 38... Ng3+ {[%clk 0:01:12.3]} 39.
Kh2 {[%clk 0:00:17.6]} 39... Nxe2 {[%clk 0:01:12.6]} 40. Rg7 {[%clk 0:00:19.1]}
40... g5 {[%clk 0:01:13.1]} 41. g3 {[%clk 0:00:19.8]} 41... Be5 {[%clk 0:01:12]}
42. Kg2 {[%clk 0:00:21.1]} 42... Nxg3 {[%clk 0:01:12.4]} 0-1

[Event "GrandPrix_30.05"]
[Site "Chess.com"]
[Date "2020.05.30"]
[Round "3"]
[White "Promacherr"]
[Black "Chessbuster123"]
[Result "1-0"]
[WhiteElo "2145"]
[BlackElo "1924"]
[TimeControl "600+2"]
[EndTime "9:22:57 PDT"]
[Termination "Promacherr won by resignation"]

1. e4 {[%clk 0:10:01.9]} 1... c5 {[%clk 0:09:59.1]} 2. Nf3 {[%clk 0:10:02.9]}
2... d6 {[%clk 0:09:59.4]} 3. d4 {[%clk 0:10:04.2]} 3... cxd4 {[%clk 0:09:59.8]}
4. Nxd4 {[%clk 0:10:06.1]} 4... Nf6 {[%clk 0:10:00.1]} 5. Nc3 {[%clk 0:10:07.1]}
5... a6 {[%clk 0:10:00.9]} 6. Bc4 {[%clk 0:10:07.7]} 6... e6 {[%clk 0:09:59.5]}
7. Bb3 {[%clk 0:10:08.7]} 7... b5 {[%clk 0:09:58.1]} 8. f4 {[%clk 0:10:09.6]}
8... Qc7 {[%clk 0:09:14.2]} 9. O-O {[%clk 0:10:07.6]} 9... Be7 {[%clk
0:09:08.3]} 10. f5 {[%clk 0:10:04.6]} 10... b4 {[%clk 0:09:06.9]} 11. Na4 {[%clk
0:09:42.1]} 11... e5 {[%clk 0:09:05.9]} 12. Nf3 {[%clk 0:09:40.8]} 12... Bb7
{[%clk 0:09:03.9]} 13. Be3 {[%clk 0:09:23.2]} 13... Nbd7 {[%clk 0:08:57.6]} 14.
c3 {[%clk 0:09:05.4]} 14... Bxe4 {[%clk 0:07:39]} 15. Bxf7+ {[%clk 0:08:00.4]}
15... Kxf7 {[%clk 0:07:29.4]} 16. Ng5+ {[%clk 0:08:00.5]} 16... Kg8 {[%clk
0:07:14.4]} 17. Nxe4 {[%clk 0:07:58]} 17... d5 {[%clk 0:07:01.8]} 18. Nxf6+
{[%clk 0:07:22.6]} 18... Nxf6 {[%clk 0:06:59.2]} 19. cxb4 {[%clk 0:07:23.7]}
19... Rb8 {[%clk 0:06:02.3]} 20. a3 {[%clk 0:07:17.9]} 20... h6 {[%clk
0:05:45.6]} 21. Rc1 {[%clk 0:07:15.8]} 21... Qd8 {[%clk 0:05:40.3]} 22. Rc6
{[%clk 0:07:05.4]} 22... d4 {[%clk 0:05:38]} 23. Bf2 {[%clk 0:06:43.6]} 23... a5
{[%clk 0:05:19.3]} 24. Bg3 {[%clk 0:06:22.5]} 24... Qd5 {[%clk 0:05:07.1]} 25.
Re6 {[%clk 0:06:16.6]} 25... Bd6 {[%clk 0:04:50.2]} 26. bxa5 {[%clk 0:06:11.2]}
26... Kh7 {[%clk 0:04:11.1]} 27. Nb6 {[%clk 0:06:04.2]} 27... Qc5 {[%clk
0:03:42.1]} 28. b4 {[%clk 0:05:58.4]} 28... Qc7 {[%clk 0:03:40.3]} 29. Re1
{[%clk 0:05:19.4]} 29... Rhe8 {[%clk 0:03:34.1]} 30. Qb3 {[%clk 0:05:10.7]}
30... Rxe6 {[%clk 0:03:08.6]} 31. Qxe6 {[%clk 0:05:12.6]} 31... Re8 {[%clk
0:03:08.9]} 32. Qc4 {[%clk 0:05:00.6]} 32... Qb7 {[%clk 0:03:07.1]} 33. Rc1
{[%clk 0:04:45.5]} 33... Ne4 {[%clk 0:02:23.2]} 34. Qb5 {[%clk 0:04:19.8]} 34...
Nxg3 {[%clk 0:02:05.8]} 35. hxg3 {[%clk 0:03:54.6]} 35... Rd8 {[%clk 0:02:01.9]}
36. Qd3 {[%clk 0:03:32.1]} 36... Bc7 {[%clk 0:01:38.3]} 37. Re1 {[%clk 0:03:25]}
37... Bxb6 {[%clk 0:01:05.1]} 38. axb6 {[%clk 0:03:26.9]} 38... Qxb6 {[%clk
0:00:57.4]} 39. Rxe5 {[%clk 0:03:25.9]} 39... Kh8 {[%clk 0:00:51.9]} 40. Re6
{[%clk 0:03:14.7]} 40... Qc7 {[%clk 0:00:39.4]} 41. f6 {[%clk 0:03:10.4]} 41...
Qc1+ {[%clk 0:00:27.9]} 42. Kh2 {[%clk 0:03:09.2]} 42... Qg5 {[%clk 0:00:25]}
43. fxg7+ {[%clk 0:03:05.6]} 43... Kxg7 {[%clk 0:00:26.9]} 44. Re4 {[%clk
0:02:54.3]} 44... Qf6 {[%clk 0:00:16.5]} 45. Rg4+ {[%clk 0:02:53.1]} 45... Kh8
{[%clk 0:00:11.6]} 46. Rg6 {[%clk 0:02:52.7]} 46... Qf8 {[%clk 0:00:12.5]} 47.
b5 {[%clk 0:02:48.6]} 47... Rd6 {[%clk 0:00:11.7]} 48. b6 {[%clk 0:02:40]} 48...
Qd8 {[%clk 0:00:05.4]} 49. Rxd6 {[%clk 0:02:29]} 49... Qxd6 {[%clk 0:00:07.3]}
50. b7 {[%clk 0:02:30.3]} 50... Qb6 {[%clk 0:00:03.3]} 51. Qe4 {[%clk 0:02:26]}
51... Kg7 {[%clk 0:00:02.7]} 52. Qe7+ {[%clk 0:02:21.7]} 52... Kg6 {[%clk
0:00:02.7]} 53. Qe8+ {[%clk 0:02:19.9]} 53... Kh7 {[%clk 0:00:04.6]} 54. b8=Q
{[%clk 0:02:18.9]} 1-0